bitfinex/quotes_SOLUSD_20260118
["timestamp","ask_amount","ask_price","bid_price","bid_amount"]
[1768748524304,0.46290943,141.67,141.63,9.2021192]
[1768748525282,0.46290943,141.65,141.61,7.06120136]
[1768748525492,0.46290943,141.65,141.61,9.20275353]
[1768748526098,0.46290943,141.65,141.62,30.0]
[1768748526493,0.46290943,141.67,141.62,30.0]
[1768748526679,0.46290943,141.67,141.63,9.20207977]
[1768748526880,0.46290943,141.67,141.63,7.0605276]
[1768748527203,0.46290943,141.67,141.63,39.20207977]
[1768748527778,0.46290943,141.67,141.63,37.0605276]
[1768748528285,0.46290943,141.67,141.63,39.20207977]
[1768748528492,9.66280775,141.68,141.63,39.20207977]
[1768748528703,9.66280775,141.68,141.63,37.0605276]
[1768748528704,0.46290943,141.67,141.63,37.0605276]
[1768748529103,9.66321475,141.67,141.63,37.0605276]
[1768748529315,0.46290943,141.65,141.63,30.0]
[1768748530010,0.46290943,141.64,141.63,30.0]
[1768748530400,0.46290943,141.65,141.63,30.0]
[1768748531401,0.46290943,141.64,141.63,30.0]
[1768748533084,2.6044616,141.66,141.63,30.0]
[1768748533280,0.46290943,141.66,141.63,30.0]
[1768748533705,0.46290943,141.65,141.63,30.0]
[1768748533904,0.46290943,141.64,141.63,28.5]
[1768748534398,2.6044616,141.64,141.63,28.0]
[1768748534934,2.14155217,141.64,141.63,28.0]
[1768748536229,9.20159884,141.65,141.63,28.0]
[1768748537427,7.06004667,141.65,141.63,28.0]
[1768748537623,2.14155217,141.65,141.63,28.0]
[1768748537806,9.2009003,141.66,141.63,28.0]
[1768748538819,7.05934813,141.66,141.63,28.0]
[1768748539002,9.2009003,141.66,141.63,28.0]
[1768748540204,7.05934813,141.66,141.63,28.46287377]
[1768748541599,9.2038229,141.66,141.63,28.46287377]
[1768748541797,9.2038229,141.66,141.63,28.0]
[1768748542210,2.14447477,141.65,141.63,28.0]
[1768748542417,2.14447477,141.64,141.61,0.49103757]
[1768748543203,2.14447477,141.63,141.59,0.49103757]
[1768748543409,9.20529577,141.63,141.59,0.49103757]
[1768748544418,7.060821,141.63,141.6,30.0]
[1768748544725,9.20529577,141.63,141.6,30.0]
[1768748545137,9.20529577,141.63,141.58,0.4407561]
[1768748545138,2.14447477,141.61,141.58,0.4407561]
[1768748545612,7.06164818,141.61,141.58,0.4407561]
[1768748545814,9.20612295,141.61,141.58,0.4407561]
[1768748546022,7.06164818,141.61,141.58,0.4407561]
[1768748546320,7.06164818,141.61,141.58,0.93179367]
[1768748546618,9.20612295,141.61,141.58,0.93179367]
[1768748547129,9.20578937,141.62,141.58,0.93179367]
[1768748547300,2.14447477,141.61,141.58,0.93179367]
[1768748547717,7.0613146,141.62,141.58,0.93179367]
[1768748547924,9.20578937,141.62,141.58,0.93179367]
[1768748548228,9.20578937,141.62,141.58,7.99490256]
[1768748548424,2.14447477,141.61,141.58,7.99490256]
[1768748549008,7.0613146,141.62,141.58,0.93179367]
[1768748549327,7.0613146,141.62,141.58,7.99491499]
[1768748549541,9.20578937,141.62,141.58,7.99491499]
[1768748550408,50.0,141.61,141.58,7.99491499]
[1768748550629,17.64728006,141.67,141.6,0.49103757]
[1768748550928,2.14447477,141.65,141.61,0.49103757]
[1768748551315,2.14447477,141.64,141.61,0.49103757]
[1768748551639,2.14447477,141.63,141.59,0.49103757]
[1768748551803,24.70704503,141.66,141.59,0.49103757]
[1768748552004,2.14447477,141.64,141.6,0.49103757]
[1768748552308,24.70704503,141.66,141.6,0.49103757]
[1768748552521,2.14447477,141.64,141.6,0.49103757]
[1768748552826,2.14447477,141.65,141.61,0.49103757]
[1768748553029,2.14447477,141.64,141.61,0.49103757]
[1768748553198,2.14447477,141.63,141.6,0.49103757]
[1768748554206,24.70704503,141.66,141.58,7.99482865]
[1768748554406,24.70704503,141.66,141.58,0.4407561]
[1768748554407,2.14447477,141.61,141.58,0.4407561]
[1768748554830,24.70704503,141.66,141.58,7.99487613]
[1768748555130,2.14447477,141.62,141.58,7.99487613]
[1768748556012,9.20575689,141.62,141.58,0.93179367]
[1768748557630,2.14447477,141.61,141.58,0.93179367]
[1768748557836,9.20575689,141.62,141.58,0.93179367]
[1768748558823,2.14447477,141.61,141.58,0.93179367]
[1768748559331,9.20575689,141.62,141.58,0.93179367]
[1768748559533,2.14447477,141.6,141.58,0.4407561]
[1768748559721,24.714156,141.62,141.58,0.4407561]
[1768748559921,24.714156,141.62,141.51,7.64315819]
[1768748559922,7.48856333,141.59,141.51,7.64315819]
[1768748560139,2.14447477,141.52,141.5,0.47667234]
[1768748560348,2.14447477,141.54,141.48,30.0]
[1768748560636,17.60447477,141.54,141.45,0.47667234]
[1768748560811,15.46,141.54,141.46,7.54543892]
[1768748561014,2.14447477,141.54,141.48,0.47667234]
[1768748561342,40.18275198,141.57,141.5,0.47667234]
[1768748561513,2.14447477,141.54,141.5,0.47667234]
[1768748561713,7.06364342,141.57,141.5,0.47667234]
[1768748561936,2.14447477,141.55,141.52,0.47667234]
[1768748562534,2.14447477,141.56,141.52,7.54275317]
[1768748562929,7.06381212,141.57,141.52,7.54275317]
[1768748563130,2.14447477,141.56,141.53,0.47667234]
[1768748563435,2.14447477,141.61,141.56,0.47667234]
[1768748563934,33.1132354,141.62,141.56,0.47667234]
[1768748564132,2.14447477,141.6,141.56,0.47667234]
[1768748564523,9.2068104,141.6,141.56,0.47667234]
[1768748564937,7.06065099,141.63,141.58,0.47667234]
[1768748565114,7.06065099,141.63,141.58,2.62114711]
[1768748565314,50.0,141.61,141.58,2.62114711]
[1768748565518,50.0,141.61,141.59,2.62114711]
[1768748565925,7.06029315,141.64,141.6,0.47667234]
[1768748566120,7.06029315,141.64,141.6,2.62114711]
[1768748566315,0.46446239,141.63,141.59,2.14447477]
[1768748566517,2.60893716,141.63,141.58,9.68392484]
[1768748566936,0.46446239,141.63,141.59,2.14447477]
[1768748567638,0.46446239,141.63,141.59,2.62114711]
[1768748567938,0.46446239,141.63,141.58,7.06277773]
[1768748568136,0.46446239,141.62,141.58,9.68392484]
[1768748568444,2.14447477,141.63,141.59,2.14447477]
[1768748568947,2.60893716,141.63,141.59,2.14447477]
[1768748569131,0.46446239,141.63,141.59,2.14447477]
[1768748569637,7.52532874,141.63,141.58,7.53945007]
[1768748569837,7.52532874,141.63,141.59,2.14447477]
[1768748570544,7.52532874,141.63,141.59,9.68377134]
[1768748571531,0.46446239,141.63,141.59,7.53929657]
[1768748571844,0.46446239,141.63,141.6,2.14447477]
[1768748572232,0.46446239,141.63,141.59,7.53929657]
[1768748572545,0.46446239,141.63,141.59,9.68377134]
[1768748573729,0.49310221,141.62,141.57,0.45038459]
[1768748573934,0.49310221,141.62,141.58,9.20748827]
[1768748575027,0.49310221,141.61,141.57,9.65842613]
[1768748575237,0.49310221,141.61,141.57,7.51395136]
[1768748575435,0.49310221,141.61,141.58,2.14447477]
[1768748575646,7.55500798,141.61,141.57,0.45038459]
[1768748575837,7.55500798,141.61,141.57,2.59485936]
[1768748576953,7.55500798,141.61,141.57,9.65835195]
[1768748577155,0.49310221,141.63,141.6,2.14447477]
[1768748577655,5.0,141.62,141.6,2.14447477]
[1768748577823,5.0,141.62,141.6,7.51246866]
[1768748578022,5.0,141.62,141.6,9.65694343]
[1768748578259,2.14447477,141.65,141.62,4.28824143]
[1768748578260,7.55287365,141.65,141.62,4.28824143]
[1768748578468,7.55287365,141.65,141.63,2.14447477]
[1768748578638,7.55287365,141.65,141.62,2.14447477]
[1768748579331,7.55287365,141.65,141.61,0.45038459]
[1768748579534,0.49310221,141.63,141.59,0.45038459]
[1768748579733,0.49310221,141.63,141.59,2.59485936]
[1768748580437,7.55391226,141.63,141.59,2.59485936]
[1768748580637,0.49310221,141.62,141.58,2.14447477]
[1768748580861,0.49310221,141.61,141.57,2.14447477]
[1768748582059,7.55391226,141.63,141.59,9.65735778]
[1768748582362,7.55391226,141.63,141.6,2.14447477]
[1768748582653,0.49310221,141.63,141.6,2.14447477]
[1768748582954,0.49310221,141.63,141.6,9.20650527]
[1768748583139,7.0602691,141.64,141.61,2.14447477]
[1768748583455,0.49310221,141.64,141.61,2.14447477]
[1768748583841,0.49310221,141.64,141.62,2.14447477]
[1768748584561,7.05967955,141.65,141.62,2.14447477]
[1768748584741,7.05883921,141.67,141.64,2.14447477]
[1768748585662,7.55194142,141.67,141.64,2.14447477]
[1768748586049,0.49310221,141.67,141.64,2.14447477]
[1768748586748,0.49310221,141.67,141.63,9.6550212]
[1768748586957,0.49310221,141.67,141.64,2.14447477]
[1768748587174,7.05784422,141.69,141.66,2.14447477]
[1768748587543,7.05784422,141.69,141.65,2.59485936]
[1768748589282,7.55033953,141.7,141.66,2.59485936]
[1768748590651,15.95310221,141.72,141.68,2.59485936]
[1768748591156,23.0093323,141.72,141.68,2.59485936]
[1768748591763,23.0093323,141.72,141.67,7.05865744]
[1768748591764,0.49310221,141.74,141.69,2.59485936]
[1768748591943,0.49310221,141.74,141.7,2.59485936]
[1768748592150,7.5479429,141.75,141.71,2.59485936]
[1768748592353,7.5479429,141.75,141.71,2.56485937]
[1768748592670,7.5479429,141.75,141.71,2.59485936]
[1768748593257,7.5479429,141.75,141.71,0.42038462]
[1768748593575,7.5479429,141.75,141.71,2.56485939]
[1768748593746,7.05484069,141.75,141.72,2.14447477]
[1768748594146,0.49310221,141.76,141.71,7.05656949]
[1768748594377,0.49310221,141.76,141.72,2.14447477]
[1768748594749,17.83329862,141.78,141.74,2.14447477]
[1768748594750,7.74656499,141.78,141.74,2.14447477]
[1768748594950,0.49310221,141.77,141.73,2.14447477]
[1768748595161,2.63757698,141.77,141.72,9.20055959]
[1768748595363,0.49310221,141.76,141.72,0.45038459]
[1768748595554,0.49310221,141.76,141.72,2.59485936]
[1768748596258,0.49310221,141.76,141.72,9.65100488]
[1768748597063,9.69154273,141.77,141.73,2.59485936]
[1768748597675,0.49310221,141.77,141.73,2.59485936]
[1768748598678,0.49310221,141.77,141.74,2.14447477]
[1768748599171,7.54679397,141.77,141.73,9.65017186]
[1768748599889,0.49310221,141.77,141.73,9.65017186]
[1768748600181,0.2,141.78,141.75,0.42038461]
[1768748600351,0.2,141.78,141.75,2.14447477]
[1768748600678,0.2,141.78,141.76,2.14447477]
[1768748600847,0.2,141.78,141.76,2.14031839]
[1768748602188,0.2,141.78,141.76,2.59737923]
[1768748605890,0.2,141.78,141.77,2.14031839]
[1768748606194,0.66187578,141.81,141.78,0.45706084]
[1768748606385,0.66187578,141.81,141.78,2.59737923]
[1768748606585,0.66187578,141.81,141.77,9.65105772]
[1768748607992,0.66187578,141.81,141.78,2.14031839]
[1768748608467,0.66187578,141.81,141.78,9.6505]
[1768748608667,0.66187578,141.81,141.78,0.45706084]
[1768748608891,7.71360699,141.81,141.78,0.45706084]
[1768748609085,7.71360699,141.81,141.77,9.65090623]
[1768748610191,0.66187578,141.81,141.77,9.65090623]
[1768748610786,0.2,141.81,141.78,2.59737923]
[1768748610985,0.2,141.81,141.79,2.59737923]
[1768748612099,2.14031839,141.84,141.79,2.59737923]
[1768748612394,15.66,141.85,141.79,2.59737923]
[1768748612596,15.66,141.85,141.8,0.45706084]
[1768748612773,2.14031839,141.84,141.8,0.42706085]
[1768748612971,18.26219417,141.85,141.8,2.14031839]
[1768748613188,2.14031839,141.84,141.8,2.14031839]
[1768748613492,18.26219417,141.85,141.8,2.14031839]
[1768748613875,18.26219417,141.85,141.8,2.11031842]
[1768748614077,16.12187578,141.85,141.81,2.14031839]
[1768748614495,25.31207921,141.85,141.81,2.14031839]
[1768748614790,0.2,141.85,141.83,0.45706084]
[1768748614970,0.2,141.85,141.83,0.42706085]
[1768748615482,0.46187578,141.84,141.8,2.14031839]
[1768748615682,0.46187578,141.84,141.79,9.19269483]
[1768748615683,2.60219417,141.84,141.79,9.19269483]
[1768748615992,2.60219417,141.84,141.8,7.05208449]
[1768748615993,0.46187578,141.84,141.8,7.05208449]
[1768748616194,0.46187578,141.84,141.8,9.19240288]
[1768748616394,0.46187578,141.84,141.81,2.14031839]
[1768748616891,0.2,141.85,141.83,0.45927906]
[1768748618694,0.2,141.85,141.84,0.45927906]
[1768748619076,0.2,141.86,141.84,0.45927906]
[1768748619386,2.60747537,141.85,141.81,0.45927906]
[1768748619782,0.46715698,141.84,141.81,0.45927906]
[1768748620079,2.60747537,141.84,141.81,0.45927906]
[1768748620290,0.46715698,141.84,141.81,0.45927906]
[1768748620594,2.14031839,141.85,141.81,7.51091671]
[1768748620801,7.71651151,141.86,141.81,7.51091671]
[1768748620971,2.14031839,141.85,141.81,7.51091671]
[1768748621695,9.65731731,141.85,141.81,7.51091671]
[1768748622268,7.51699892,141.85,141.81,7.51091671]
[1768748622473,2.34031839,141.86,141.82,0.45927906]
[1768748622794,0.46715698,141.85,141.82,0.45927906]
[1768748622976,0.46715698,141.84,141.8,9.65170364]
[1768748623374,0.46715698,141.84,141.81,7.05149733]
[1768748623600,2.60747537,141.85,141.81,7.51077639]
[1768748623983,2.60747537,141.85,141.81,9.65109478]
[1768748624296,0.46715698,141.85,141.81,7.51077639]
[1768748624495,7.51688064,141.85,141.81,9.65109478]
[1768748624698,9.65719903,141.85,141.81,9.65109478]
[1768748625384,0.2,141.86,141.82,0.45927906]
[1768748625590,2.80747537,141.86,141.82,0.45927906]
[1768748626592,0.66715698,141.86,141.82,7.51028568]
[1768748626799,2.80747537,141.86,141.82,7.51028568]
[1768748627377,2.60747537,141.84,141.81,7.51077362]
[1768748628601,2.14031839,141.84,141.81,7.51077362]
[1768748628786,9.65733747,141.85,141.81,7.51077362]
[1768748630806,0.46715698,141.84,141.81,7.51077362]
[1768748631694,0.46715698,141.83,141.8,7.05200076]
[1768748631895,2.14031839,141.82,141.79,0.45927906]
[1768748632094,0.46715698,141.82,141.79,0.45927906]
[1768748632294,0.46715698,141.82,141.78,7.53366923]
[1768748632498,2.60747537,141.82,141.78,7.53366923]
[1768748633711,9.65867801,141.82,141.78,7.53366923]
[1768748634604,7.52672243,141.85,141.81,0.48097915]
[1768748634810,2.61734044,141.84,141.8,0.48097915]
[1768748635391,2.61734044,141.83,141.79,0.48097915]
[1768748635902,2.61734044,141.83,141.79,7.53355892]
[1768748636613,9.66806098,141.83,141.79,7.53355892]
[1768748637900,7.52780023,141.83,141.79,9.67387731]
[1768748638203,7.52780023,141.83,141.8,0.48097915]
[1768748639016,9.66811862,141.83,141.8,0.48097915]
[1768748639211,2.61734044,141.82,141.78,0.48097915]
[1768748639597,2.61734044,141.81,141.78,0.48097915]
[1768748641793,0.47702205,141.81,141.78,0.48097915]
[1768748642194,0.47702205,141.81,141.78,7.53415411]
[1768748642494,9.66895499,141.82,141.78,7.53415411]
[1768748644205,2.61734044,141.81,141.78,0.48097915]
[1768748648225,0.47702205,141.81,141.78,7.53402037]
[1768748648598,9.66895499,141.82,141.78,7.53402037]
[1768748649226,0.47702205,141.82,141.78,9.67433876]
[1768748649525,0.47702205,141.82,141.78,7.53402037]
[1768748649526,0.47702205,141.81,141.78,7.53402037]
[1768748650110,0.47702205,141.82,141.78,7.53402037]
[1768748650418,9.19057497,141.84,141.8,0.48097915]
[1768748650614,0.47702205,141.84,141.81,0.48097915]
[1768748651019,2.61734044,141.85,141.81,0.48097915]
[1768748651232,0.2,141.86,141.83,0.48097915]
[1768748651534,0.47702205,141.85,141.8,0.48097915]
[1768748651702,0.47702205,141.84,141.81,0.48097915]
[1768748652118,2.61734044,141.84,141.81,0.48097915]
[1768748653021,0.47702205,141.84,141.81,0.48097915]
[1768748653223,2.61734044,141.84,141.81,0.48097915]
[1768748653814,0.47702205,141.84,141.81,0.48097915]
[1768748655221,2.61734044,141.84,141.8,7.05177291]
[1768748655407,0.47702205,141.83,141.8,7.05177291]
[1768748655609,0.47702205,141.83,141.81,7.05164254]
[1768748655814,2.61734044,141.84,141.81,7.05164254]
[1768748656119,0.47702205,141.84,141.81,7.05164254]
[1768748656327,0.47702205,141.84,141.8,9.67329413]
[1768748656713,0.47702205,141.84,141.81,7.05157852]
[1768748657257,7.24930571,141.86,141.83,0.48097915]
[1768748657427,7.72632776,141.86,141.83,0.48097915]
[1768748657607,9.86664615,141.86,141.83,0.48097915]
[1768748658228,9.86664615,141.86,141.82,7.53204887]
[1768748658929,9.66711644,141.85,141.81,7.05148633]
[1768748659131,9.66711644,141.85,141.81,7.53246548]
[1768748659317,2.61734044,141.85,141.81,7.53246548]
[1768748659518,2.61734044,141.85,141.82,7.05110032]
[1768748659914,0.47702205,141.85,141.82,7.05110032]
[1768748660312,0.47702205,141.85,141.82,9.67239786]
[1768748660513,7.24935845,141.86,141.83,2.62129754]
[1768748661229,7.24935845,141.86,141.83,0.48097915]
[1768748661735,0.2,141.86,141.84,0.48097915]
[1768748662036,0.47702205,141.88,141.85,0.48097915]
[1768748662233,0.47702205,141.88,141.85,0.45097916]
[1768748662542,7.73881397,141.89,141.85,0.45097916]
[1768748662713,7.73881397,141.89,141.85,2.59129755]
[1768748663032,9.87638562,141.89,141.85,0.45097916]
[1768748663232,0.4907856,141.88,141.85,0.45097916]
[1768748663935,7.53901328,141.88,141.85,0.45097916]
[1768748665231,7.53901328,141.88,141.85,2.58855081]
[1768748665615,7.73859349,141.89,141.85,2.58855081]
[1768748665816,7.24780789,141.89,141.86,0.48268889]
[1768748666128,0.2,141.89,141.86,0.48268889]
[1768748666626,0.2,141.89,141.86,2.62026054]
[1768748666827,0.2,141.89,141.86,0.48268889]
[1768748667237,9.87610787,141.89,141.86,0.48268889]
[1768748667416,7.73853622,141.89,141.86,0.48268889]
[1768748667612,7.73853622,141.89,141.86,0.4526889]
[1768748668622,7.73853622,141.89,141.86,0.42268893]
[1768748668930,9.87610787,141.89,141.86,0.42268893]
[1768748669110,9.87610787,141.89,141.84,7.04999024]
[1768748669313,9.87610787,141.89,141.85,2.13757165]
[1768748669529,9.87610787,141.89,141.84,7.04999024]
[1768748669714,2.62835725,141.88,141.81,33.06900596]
[1768748669925,2.62835725,141.88,141.84,2.13757165]
[1768748670127,0.4907856,141.88,141.84,9.18742381]
[1768748670726,0.4907856,141.88,141.84,9.6701127]
[1768748672641,0.4907856,141.87,141.84,2.62026054]
[1768748672824,9.67675413,141.88,141.84,2.62026054]
[1768748673142,2.62835725,141.87,141.83,0.48268889]
[1768748673340,0.4907856,141.87,141.83,0.48268889]
[1768748673539,0.4907856,141.87,141.83,2.62026054]
[1768748673740,0.4907856,141.87,141.84,0.48268889]
[1768748674625,0.4907856,141.87,141.83,2.13757165]
[1768748674626,7.53972746,141.87,141.83,0.48268889]
[1768748674842,2.62835725,141.85,141.81,0.48268889]
[1768748675028,2.62835725,141.85,141.81,2.62026054]
[1768748675642,0.4907856,141.85,141.81,2.62026054]
[1768748675827,0.4907856,141.85,141.82,2.62026054]
[1768748676022,0.4907856,141.86,141.82,2.62026054]
[1768748676366,9.68009416,141.87,141.83,0.4698354]
[1768748676522,9.68009416,141.87,141.83,2.60740705]
[1768748677128,9.67953167,141.88,141.84,2.60740705]
[1768748679448,7.54196002,141.88,141.84,2.60740705]
[1768748679624,9.67953167,141.88,141.84,2.60740705]
[1768748680645,7.54196002,141.88,141.84,2.60740705]
[1768748681146,9.67953167,141.88,141.84,9.65741889]
[1768748682154,9.67953167,141.88,141.84,0.4698354]
[1768748682359,2.6311523,141.86,141.83,0.4698354]
[1768748682647,2.6311523,141.86,141.82,9.65845664]
[1768748682853,2.6311523,141.86,141.83,7.52047305]
[1768748683351,2.13757165,141.87,141.84,0.4698354]
[1768748683951,2.6311523,141.87,141.84,0.4698354]
[1768748684148,9.18595102,141.88,141.84,0.4698354]
[1768748684332,9.67953167,141.88,141.84,0.4698354]
[1768748685549,0.49358065,141.88,141.85,2.60740705]
[1768748685732,2.6311523,141.88,141.85,0.4698354]
[1768748687054,9.67982641,141.88,141.85,0.4698354]
[1768748687536,7.54225476,141.88,141.85,0.4698354]
[1768748687728,9.67982641,141.88,141.85,0.4698354]
[1768748689550,9.67982641,141.88,141.82,7.0510628]
[1768748689551,2.6311523,141.86,141.82,0.4698354]
[1768748689758,0.49358065,141.85,141.82,0.4698354]
[1768748689959,2.6311523,141.86,141.82,0.4698354]
[1768748690163,2.6311523,141.86,141.83,0.4698354]
[1768748690533,0.49358065,141.87,141.83,0.4698354]
[1768748690754,27.30035079,141.88,141.84,2.60740705]
[1768748691243,27.30035079,141.88,141.85,0.4698354]
[1768748691638,27.30035079,141.88,141.84,2.60740705]
[1768748691839,27.30035079,141.88,141.85,0.4698354]
[1768748692136,7.74150554,141.89,141.85,2.60740705]
[1768748692337,7.74150554,141.89,141.86,0.48743606]
[1768748693242,0.45735211,141.88,141.83,0.48743606]
[1768748693564,2.59492376,141.88,141.84,0.48743606]
[1768748693965,2.59492376,141.88,141.84,2.62500771]
[1768748694138,0.45735211,141.88,141.84,2.62500771]
[1768748694643,7.50594474,141.88,141.84,2.62500771]
[1768748694846,7.50594474,141.88,141.85,0.48743606]
[1768748695464,0.45735211,141.87,141.84,0.48743606]
[1768748697069,0.45735211,141.87,141.84,9.67500551]
[1768748697367,7.50594474,141.88,141.84,9.67500551]
[1768748697946,7.50594474,141.88,141.84,2.62500771]
[1768748700170,0.45735211,141.87,141.84,0.48743606]
[1768748700353,0.45735211,141.87,141.83,9.675496]
[1768748700671,0.45735211,141.87,141.84,0.48743606]
[1768748703372,0.45735211,141.86,141.81,0.48743606]
[1768748703579,0.45735211,141.86,141.81,2.62500771]
[1768748703751,0.45735211,141.86,141.82,0.48743606]
[1768748703951,7.50669588,141.86,141.82,7.53849421]
[1768748704171,9.64426753,141.86,141.82,0.48743606]
[1768748704548,9.64426753,141.86,141.82,2.62500771]
[1768748705474,9.64426753,141.86,141.82,9.67617528]
[1768748706075,9.64426753,141.86,141.82,0.48743606]
[1768748706270,9.64426753,141.86,141.82,2.62500771]
[1768748707292,0.45735211,141.85,141.8,7.53949306]
[1768748707485,0.45735211,141.83,141.79,7.53980587]
[1768748707657,0.45735211,141.83,141.79,9.67737752]
[1768748707991,0.45735211,141.83,141.8,0.48743606]
[1768748708679,0.45735211,141.82,141.78,9.67798091]
[1768748709376,0.45735211,141.82,141.79,0.48743606]
[1768748709576,0.45735211,141.84,141.81,2.62500771]
[1768748709764,0.45735211,141.85,141.81,2.62500771]
[1768748710757,7.50705317,141.85,141.81,9.67667507]
[1768748712462,0.45735211,141.85,141.82,2.62500771]
[1768748714661,7.50737293,141.85,141.82,0.48743606]
[1768748716567,0.45735211,141.84,141.81,0.48743606]
[1768748717310,7.05002082,141.85,141.82,0.48743606]
[1768748717311,7.50737293,141.85,141.82,0.48743606]
[1768748717592,0.45735211,141.86,141.83,0.48743606]
[1768748718590,7.50665882,141.86,141.83,0.48743606]
[1768748718887,7.04930671,141.86,141.83,0.48743606]
[1768748719392,7.50665882,141.86,141.83,0.48743606]
[1768748719685,0.45735211,141.85,141.82,0.48743606]
[1768748721169,0.45735211,141.85,141.82,2.62500771]
[1768748722091,7.50707353,141.85,141.82,2.62500771]
[1768748722892,7.50707353,141.85,141.82,2.62596492]
[1768748723498,7.04920344,141.86,141.83,0.4914174]
[1768748723983,7.51848431,141.86,141.83,0.4914174]
[1768748725296,7.51848431,141.86,141.83,2.62994626]
[1768748728292,7.51848431,141.86,141.83,0.4914174]
[1768748729376,0.46928087,141.86,141.83,0.4914174]
[1768748730068,7.04890495,141.87,141.84,0.4914174]
[1768748730268,7.51818582,141.87,141.84,0.4914174]
[1768748733582,7.51818582,141.87,141.84,2.62994626]
[1768748734390,7.51818582,141.87,141.84,0.4914174]
[1768748735594,7.51818582,141.87,141.83,2.13852886]
[1768748737097,7.51818582,141.87,141.84,2.13852886]
[1768748738801,7.51818582,141.87,141.83,2.49898736]
[1768748740905,0.46021872,141.86,141.83,2.49898736]
[1768748742498,7.50954883,141.86,141.83,2.49898736]
[1768748744285,0.46021872,141.86,141.83,2.49898736]
[1768748747103,7.5095138,141.86,141.83,0.3604585]
[1768748747499,7.5095138,141.86,141.83,2.49898736]
[1768748748505,0.46021872,141.85,141.83,2.13852886]
[1768748748690,7.04870656,141.87,141.83,2.13852886]
[1768748748884,2.13852886,141.86,141.79,0.48711274]
[1768748749192,2.13852886,141.85,141.81,0.48711274]
[1768748750882,7.51041952,141.84,141.81,0.48711274]
[1768748756891,2.13852886,141.85,141.81,0.48711274]
[1768748757520,2.13852886,141.82,141.78,0.48895769]
[1768748757698,15.44,141.86,141.78,0.48895769]
[1768748757699,2.13852886,141.81,141.78,0.48895769]
[1768748758617,15.7,141.8,141.78,0.48895769]
[1768748758819,15.63999998,141.8,141.78,0.48895769]
[1768748760607,23.17075763,141.8,141.77,0.48895769]
[1768748762222,16.1184987,141.8,141.77,0.48895769]
[1768748763221,23.17071529,141.8,141.77,0.48895769]
[1768748765014,23.11071529,141.8,141.77,0.48895769]
[1768748765828,7.53071531,141.8,141.77,0.48895769]
[1768748767722,0.47849872,141.79,141.75,2.62748655]
[1768748767923,9.67018603,141.79,141.75,0.48895769]
[1768748768708,7.53165717,141.79,141.75,2.62748655]
[1768748771809,7.47165717,141.79,141.75,2.62748655]
[1768748772425,7.47165717,141.79,141.76,0.48895769]
[1768748777029,50.47849872,141.78,141.75,0.48895769]
[1768748777355,50.47849872,141.78,141.75,2.62748655]
[1768748778336,50.47849872,141.78,141.75,0.48895769]
[1768748778633,50.47849872,141.78,141.75,2.62748655]
[1768748778828,50.47849872,141.78,141.76,0.48895769]
[1768748783238,57.53191255,141.78,141.75,0.48403615]
[1768748783646,0.4824046,141.77,141.74,7.53879624]
[1768748783939,57.53581843,141.78,141.75,0.48403615]
[1768748784333,7.53581843,141.78,141.75,0.48403615]
[1768748789520,0.45066285,141.76,141.73,0.49765859]
[1768748789838,2.14092373,141.76,141.71,15.93765859]
[1768748790037,2.14092373,141.76,141.71,0.49765859]
[1768748790533,2.14092373,141.75,141.71,0.49765859]
[1768748790838,24.68636629,141.78,141.71,2.14092373]
[1768748791032,2.14092373,141.77,141.72,0.49765859]
[1768748791626,7.05417607,141.76,141.72,0.49765859]
[1768748791839,0.45066285,141.75,141.72,0.49765859]
[1768748792033,50.39066284,141.75,141.72,0.49765859]
[1768748792935,57.4454583,141.75,141.72,0.49765859]
[1768748794733,0.45066285,141.74,141.71,2.63858232]
[1768748795247,0.45066285,141.73,141.7,0.49765859]
[1768748795435,0.45066285,141.73,141.7,2.63858232]
[1768748796023,0.45066285,141.73,141.69,7.75495918]
[1768748796345,0.45066285,141.73,141.7,0.47927294]
[1768748796749,7.05616709,141.72,141.7,0.47927294]
[1768748796924,7.52490214,141.72,141.69,0.67927294]
[1768748797244,0.46873505,141.72,141.69,2.82019667]
[1768748798149,7.52492764,141.72,141.69,0.2]
[1768748800450,7.46492761,141.72,141.69,0.2]
[1768748801749,7.46492761,141.72,141.69,0.67927294]
[1768748803255,9.60585134,141.72,141.69,0.67927294]
[1768748803448,9.66585137,141.72,141.69,0.67927294]
[1768748803956,7.52492764,141.72,141.69,0.67927294]
[1768748805855,0.46873505,141.71,141.69,0.2]
[1768748806031,0.40873505,141.71,141.69,0.2]
[1768748807448,0.34873501,141.71,141.69,0.2]
[1768748811058,7.4054105,141.71,141.69,0.2]
[1768748811252,0.35910398,141.74,141.71,0.47927294]
[1768748811448,0.35910398,141.74,141.71,2.62019667]
[1768748811852,50.0,141.73,141.71,2.62019667]
[1768748812640,50.0,141.73,141.71,0.47927294]
[1768748814356,50.0,141.73,141.72,0.49184708]
[1768748814546,7.05532755,141.74,141.72,0.49184708]
[1768748814935,0.35910398,141.75,141.73,0.49184708]
[1768748814936,7.05467372,141.75,141.73,0.49184708]